Workbook

Sheet Home
A1: =+IF(LEFT(input!E4,1)="S","S_","") ->  | B1: input
A3: BUSINC
A4: 2020-03-13 | C4: Business incorporation calculator
A5: 1
O16: Last updated: | Q16: 2024-03-21
P17: } copyright
C18: 39-41 Bank Street § Ashford § Kent TN23 1DQ § | P18: } disclaimer

Sheet xxxSheet1 (hidden)
A1: year | B1: year_name | C1: last_updated | D1: PA | E1: PAT | F1: PAR | G1: SRB | H1: SR | I1: BRB | J1: BR | K1: HRB | L1: HR | M1: AR | N1: DSR | O1: DBR | P1: DHR | Q1: DAR | R1: div_allce | S1: sav_allce_BR | T1: sav_allce_HR | U1: LBRB | V1: LBR | W1: UBRB | X1: UBR | Y1: OROI | Z1: fuel_bik | AA1: CGT_LR | AB1: CGT_HR | AC1: CGT_ER | AD1: CGT_AEA | AE1: CGT_LRR | AF1: CGT_HRR | AG1: CT_SPR | AH1: CT_MCR | AI1: CT_MRF | AJ1: CT_MRLT | AK1: CT_MRUT | AL1: CA_MR | AM1: CA_SR | AN1: NIC_PT | AO1: NIC_UEL | AP1: NIC_LR | AQ1: NIC_UR | AR1: NIC_ST | AS1: NIC_ER | AT1: NIC_PT_W | AU1: NIC_UEL_W | AV1: NIC_LPL | AW1: NIC_UPL | AX1: NIC_SE1 | AY1: NIC_SE2 | AZ1: NIC_C2 | BA1: NIC_C2_EXEMPT | BB1: VAT_SR | BC1: VAT_RR | BD1: S_PA | BE1: S_PAT | BF1: S_PAR | BG1: S_SRB | BH1: S_SR | BI1: S_BRB | BJ1: S_BR | BK1: S_HRB | BL1: S_HR | BM1: S_AR | BN1: S_ARB | BO1: S_TR | BP1: S_DSR | BQ1: S_DBR | BR1: S_DHR | BS1: S_DAR | BT1: S_div_allce | BU1: S_sav_allce_BR | BV1: S_sav_allce_HR | BW1: S_LBRB | BX1: S_LBR | BY1: S_UBRB | BZ1: S_UBR | CA1: nrb | CB1: rate | CC1: gross_up | CD1: IHT_MRNRB | CE1: HICBC_threshold | CF1: HICBC_limit | CG1: HICBC_divider | CH1: HICBC_rate
A2: 2022 | B2: 2022/2023 | C2: 2022-03-24 | D2: 12570 | E2: 100000 | F2: 0.5 | G2: 5000 | H2: 0 | I2: 32700 | J2: 0.2 | K2: 112300 | L2: 0.4 | M2: 0.45 | N2: 0 | O2: 0.0875 | P2: 0.3375 | Q2: 0.3935 | R2: 2000 | S2: 1000 | T2: 500 | U2: 0 | V2: 0 | W2: 0 | X2: 0 | Y2: 0.025 | Z2: 25300 | AA2: 0.1 | AB2: 0.2 | AC2: 0.1 | AD2: 12300 | AE2: 0.18 | AF2: 0.28 | AG2: 0.19 | AH2: 0.19 | AI2: 0 | AJ2: 300000 | AK2: 1500000 | AL2: 0.18 | AM2: 0.06 | AN2: 9880 | AO2: 50270 | AP2: 0.1325 | AQ2: 0.0325 | AR2: 9100 | AS2: 0.1505 | AT2: 190 | AU2: 967 | AV2: 11908 | AW2: 50270 | AX2: 0.1025 | AY2: 0.0325 | AZ2: 3.15 | BA2: 6725 | BB2: 0.2 | BC2: 0.05 | BD2: 12570 | BE2: 100000 | BF2: 0.5 | BG2: 0 | BH2: 0 | BI2: 10956 | BJ2: 0.2 | BK2: 118908 | BL2: 0.41 | BM2: 0.46 | BP2: 0.075 | BQ2: 0.0875 | BR2: 0.3375 | BS2: 0.3935 | BT2: 2000 | BU2: 1000 | BV2: 500 | BW2: 2162 | BX2: 0.19 | BY2: 17974 | BZ2: 0.21 | CA2: 325000 | CB2: 0.4 | CC2: 0.25 | CD2: 175000 | CE2: 50000 | CF2: 60000 | CG2: 100 | CH2: 0.01
A3: 2021 | B3: 2021/2022 | C3: 2021-02-28 | D3: 12570 | E3: 100000 | F3: 0.5 | G3: 5000 | H3: 0 | I3: 32700 | J3: 0.2 | K3: 112300 | L3: 0.4 | M3: 0.45 | N3: 0 | O3: 0.075 | P3: 0.325 | Q3: 0.381 | R3: 2000 | S3: 1000 | T3: 500 | U3: 0 | V3: 0 | W3: 0 | X3: 0 | Y3: 0.025 | Z3: 24600 | AA3: 0.1 | AB3: 0.2 | AC3: 0.1 | AD3: 12300 | AE3: 0.18 | AF3: 0.28 | AG3: 0.19 | AH3: 0.19 | AI3: 0 | AJ3: 300000 | AK3: 1500000 | AL3: 0.18 | AM3: 0.06 | AN3: 9568 | AO3: 50270 | AP3: 0.12 | AQ3: 0.02 | AR3: 8840 | AS3: 0.138 | AT3: 184 | AU3: 967 | AV3: 9568 | AW3: 50270 | AX3: 0.09 | AY3: 0.02 | AZ3: 3.05 | BA3: 6515 | BB3: 0.2 | BC3: 0.05 | BD3: 12570 | BE3: 100000 | BF3: 0.5 | BG3: 0 | BH3: 0 | BI3: 10629 | BJ3: 0.2 | BK3: 118908 | BL3: 0.41 | BM3: 0.46 | BP3: 0.075 | BQ3: 0.075 | BR3: 0.325 | BS3: 0.381 | BT3: 2000 | BU3: 1000 | BV3: 500 | BW3: 2097 | BX3: 0.19 | BY3: 18366 | BZ3: 0.21 | CA3: 325000 | CB3: 0.4 | CC3: 0.25 | CD3: 175000 | CE3: 50000 | CF3: 60000 | CG3: 100 | CH3: 0.01
A4: 2020 | B4: 2020/2021 | C4: 2020-03-22 | D4: 12500 | E4: 100000 | F4: 0.5 | G4: 5000 | H4: 0 | I4: 32500 | J4: 0.2 | K4: 112500 | L4: 0.4 | M4: 0.45 | N4: 0 | O4: 0.075 | P4: 0.325 | Q4: 0.381 | R4: 2000 | S4: 1000 | T4: 500 | U4: 0 | V4: 0 | W4: 0 | X4: 0 | Y4: 0.025 | Z4: 24500 | AA4: 0.1 | AB4: 0.2 | AC4: 0.1 | AD4: 12300 | AE4: 0.18 | AF4: 0.28 | AG4: 0.19 | AH4: 0.19 | AI4: 0 | AJ4: 300000 | AK4: 1500000 | AL4: 0.18 | AM4: 0.06 | AN4: 9500 | AO4: 50000 | AP4: 0.12 | AQ4: 0.02 | AR4: 8788 | AS4: 0.138 | AT4: 183 | AU4: 962 | AV4: 9500 | AW4: 50000 | AX4: 0.09 | AY4: 0.02 | AZ4: 3.05 | BA4: 6475 | BB4: 0.2 | BC4: 0.05 | BD4: 12500 | BE4: 100000 | BF4: 0.5 | BG4: 0 | BH4: 0 | BI4: 10573 | BJ4: 0.2 | BK4: 119070 | BL4: 0.41 | BM4: 0.46 | BP4: 0.075 | BQ4: 0.075 | BR4: 0.325 | BS4: 0.381 | BT4: 2000 | BU4: 1000 | BV4: 500 | BW4: 2086 | BX4: 0.19 | BY4: 18272 | BZ4: 0.21 | CA4: 325000 | CB4: 0.4 | CC4: 0.25 | CD4: 175000 | CE4: 50000 | CF4: 60000 | CG4: 100 | CH4: 0.01
A5: 2019 | B5: 2019/2020 | C5: 2019-05-04 | D5: 12500 | E5: 100000 | F5: 0.5 | G5: 5000 | H5: 0 | I5: 32500 | J5: 0.2 | K5: 112500 | L5: 0.4 | M5: 0.45 | N5: 0 | O5: 0.075 | P5: 0.325 | Q5: 0.381 | R5: 2000 | S5: 1000 | T5: 500 | U5: 0 | V5: 0 | W5: 0 | X5: 0 | Y5: 0.025 | Z5: 24100 | AA5: 0.1 | AB5: 0.2 | AC5: 0.1 | AD5: 12000 | AE5: 0.18 | AF5: 0.28 | AG5: 0.19 | AH5: 0.19 | AI5: 0 | AJ5: 300000 | AK5: 1500000 | AL5: 0.18 | AM5: 0.06 | AN5: 8632 | AO5: 50000 | AP5: 0.12 | AQ5: 0.02 | AR5: 8632 | AS5: 0.138 | AT5: 166 | AU5: 962 | AV5: 8632 | AW5: 50000 | AX5: 0.09 | AY5: 0.02 | AZ5: 3 | BA5: 6365 | BB5: 0.2 | BC5: 0.05 | BD5: 12500 | BE5: 100000 | BF5: 0.5 | BG5: 0 | BH5: 0 | BI5: 10395 | BJ5: 0.2 | BK5: 119070 | BL5: 0.41 | BM5: 0.46 | BP5: 0.075 | BQ5: 0.075 | BR5: 0.325 | BS5: 0.381 | BT5: 2000 | BU5: 1000 | BV5: 500 | BW5: 2049 | BX5: 0.19 | BY5: 18486 | BZ5: 0.21 | CA5: 325000 | CB5: 0.4 | CC5: 0.25 | CD5: 150000 | CE5: 50000 | CF5: 60000 | CG5: 100 | CH5: 0.01
A6: 2012 | B6: 2012/2013 | C6: 2018-05-04 | D6: 8105 | E6: 100000 | F6: 0.5 | G6: 2710 | H6: 0.1 | I6: 31660 | J6: 0.2 | K6: 115630 | L6: 0.4 | M6: 0.5 | N6: 0.1 | O6: 0.1 | P6: 0.325 | Q6: 0.425 | R6: 0 | S6: 0 | T6: 0 | U6: 0 | V6: 0 | W6: 0 | X6: 0 | Y6: 0.03 | Z6: 0 | AA6: 0.18 | AB6: 0.28 | AC6: 0.1 | AD6: 10600 | AE6: 0.18 | AF6: 0.28 | AG6: 0.2 | AH6: 0.24 | AI6: 0.01 | AJ6: 300000 | AK6: 1500000 | AL6: 0.18 | AM6: 0.08 | AN6: 7605 | AO6: 42475 | AP6: 0.12 | AQ6: 0.02 | AR6: 7488 | AS6: 0.138 | AT6: 146 | AU6: 817 | AV6: 7605 | AW6: 42475 | AX6: 0.09 | AY6: 0.02 | AZ6: 2.65 | BA6: 0 | BB6: 0.2 | BC6: 0.05 | CA6: 325000 | CB6: 0.4 | CC6: 0.25 | CD6: 0 | CE6: 50000 | CF6: 60000 | CG6: 100 | CH6: 0.01
A7: 2013 | B7: 2013/2014 | C7: 2018-05-04 | D7: 9440 | E7: 100000 | F7: 0.5 | G7: 2790 | H7: 0.1 | I7: 29220 | J7: 0.2 | K7: 117990 | L7: 0.4 | M7: 0.45 | N7: 0.1 | O7: 0.1 | P7: 0.325 | Q7: 0.375 | R7: 0 | S7: 0 | T7: 0 | U7: 0 | V7: 0 | W7: 0 | X7: 0 | Y7: 0.03 | Z7: 21100 | AA7: 0.18 | AB7: 0.28 | AC7: 0.1 | AD7: 10900 | AE7: 0.18 | AF7: 0.28 | AG7: 0.2 | AH7: 0.23 | AI7: 0.0075 | AJ7: 300000 | AK7: 1500000 | AL7: 0.18 | AM7: 0.08 | AN7: 7755 | AO7: 41450 | AP7: 0.12 | AQ7: 0.02 | AR7: 7696 | AS7: 0.138 | AT7: 149 | AU7: 797 | AV7: 7755 | AW7: 41450 | AX7: 0.09 | AY7: 0.02 | AZ7: 2.7 | BA7: 0 | BB7: 0.2 | BC7: 0.05 | CA7: 325000 | CB7: 0.4 | CC7: 0.25 | CD7: 0 | CE7: 50000 | CF7: 60000 | CG7: 100 | CH7: 0.01
A8: 2014 | B8: 2014/2015 | C8: 2018-05-04 | D8: 10000 | E8: 100000 | F8: 0.5 | G8: 2880 | H8: 0.1 | I8: 28985 | J8: 0.2 | K8: 118135 | L8: 0.4 | M8: 0.45 | N8: 0.1 | O8: 0.1 | P8: 0.325 | Q8: 0.375 | R8: 0 | S8: 0 | T8: 0 | U8: 0 | V8: 0 | W8: 0 | X8: 0 | Y8: 0.03 | Z8: 21700 | AA8: 0.18 | AB8: 0.28 | AC8: 0.1 | AD8: 11000 | AE8: 0.18 | AF8: 0.28 | AG8: 0.2 | AH8: 0.21 | AI8: 0.0025 | AJ8: 300000 | AK8: 1500000 | AL8: 0.18 | AM8: 0.08 | AN8: 7956 | AO8: 41865 | AP8: 0.12 | AQ8: 0.02 | AR8: 7956 | AS8: 0.138 | AT8: 153 | AU8: 805 | AV8: 7956 | AW8: 41865 | AX8: 0.09 | AY8: 0.02 | AZ8: 2.75 | BA8: 0 | BB8: 0.2 | BC8: 0.05 | CA8: 325000 | CB8: 0.4 | CC8: 0.25 | CD8: 0 | CE8: 50000 | CF8: 60000 | CG8: 100 | CH8: 0.01
A9: 2015 | B9: 2015/2016 | C9: 2018-05-04 | D9: 10600 | E9: 100000 | F9: 0.5 | G9: 5000 | H9: 0 | I9: 26785 | J9: 0.2 | K9: 118215 | L9: 0.4 | M9: 0.45 | N9: 0.1 | O9: 0.1 | P9: 0.325 | Q9: 0.375 | R9: 0 | S9: 0 | T9: 0 | U9: 0 | V9: 0 | W9: 0 | X9: 0 | Y9: 0.03 | Z9: 22100 | AA9: 0.18 | AB9: 0.28 | AC9: 0.1 | AD9: 11100 | AE9: 0.18 | AF9: 0.28 | AG9: 0.2 | AH9: 0.2 | AI9: 0 | AJ9: 300000 | AK9: 1500000 | AL9: 0.18 | AM9: 0.08 | AN9: 8060 | AO9: 42380 | AP9: 0.12 | AQ9: 0.02 | AR9: 8112 | AS9: 0.138 | AT9: 155 | AU9: 815 | AV9: 8060 | AW9: 42380 | AX9: 0.09 | AY9: 0.02 | AZ9: 2.8 | BA9: 5965 | BB9: 0.2 | BC9: 0.05 | CA9: 325000 | CB9: 0.4 | CC9: 0.25 | CD9: 0 | CE9: 50000 | CF9: 60000 | CG9: 100 | CH9: 0.01
A10: 2016 | B10: 2016/2017 | C10: 2018-05-04 | D10: 11000 | E10: 100000 | F10: 0.5 | G10: 5000 | H10: 0 | I10: 27000 | J10: 0.2 | K10: 118000 | L10: 0.4 | M10: 0.45 | N10: 0.075 | O10: 0.075 | P10: 0.325 | Q10: 0.381 | R10: 5000 | S10: 1000 | T10: 500 | U10: 0 | V10: 0 | W10: 0 | X10: 0 | Y10: 0.03 | Z10: 22200 | AA10: 0.1 | AB10: 0.2 | AC10: 0.1 | AD10: 11100 | AE10: 0.18 | AF10: 0.28 | AG10: 0.2 | AH10: 0.2 | AI10: 0 | AJ10: 300000 | AK10: 1500000 | AL10: 0.18 | AM10: 0.08 | AN10: 8112 | AO10: 43004 | AP10: 0.12 | AQ10: 0.02 | AR10: 8112 | AS10: 0.138 | AT10: 156 | AU10: 827 | AV10: 8060 | AW10: 43000 | AX10: 0.09 | AY10: 0.02 | AZ10: 2.8 | BA10: 5965 | BB10: 0.2 | BC10: 0.05 | CA10: 325000 | CB10: 0.4 | CC10: 0.25 | CD10: 0 | CE10: 50000 | CF10: 60000 | CG10: 100 | CH10: 0.01
A11: 2017 | B11: 2017/2018 | C11: 2018-05-04 | D11: 11500 | E11: 100000 | F11: 0.5 | G11: 5000 | H11: 0 | I11: 28500 | J11: 0.2 | K11: 116500 | L11: 0.4 | M11: 0.45 | N11: 0.075 | O11: 0.075 | P11: 0.325 | Q11: 0.381 | R11: 5000 | S11: 1000 | T11: 500 | U11: 0 | V11: 0 | W11: 0 | X11: 0 | Y11: 0.025 | Z11: 22600 | AA11: 0.1 | AB11: 0.2 | AC11: 0.1 | AD11: 11300 | AE11: 0.18 | AF11: 0.28 | AG11: 0.19 | AH11: 0.19 | AI11: 0 | AJ11: 300000 | AK11: 1500000 | AL11: 0.18 | AM11: 0.08 | AN11: 8164 | AO11: 45032 | AP11: 0.12 | AQ11: 0.02 | AR11: 8164 | AS11: 0.138 | AT11: 157 | AU11: 866 | AV11: 8164 | AW11: 45000 | AX11: 0.09 | AY11: 0.02 | AZ11: 2.85 | BA11: 6025 | BB11: 0.2 | BC11: 0.05 | BD11: 11500 | BE11: 100000 | BF11: 0.5 | BG11: 0 | BH11: 0 | BI11: 31500 | BJ11: 0.2 | BK11: 118500 | BL11: 0.4 | BM11: 0.45 | BP11: 0.075 | BQ11: 0.075 | BR11: 0.325 | BS11: 0.381 | BT11: 5000 | BU11: 1000 | BV11: 500 | BW11: 0 | BX11: 0 | BY11: 0 | BZ11: 0 | CA11: 325000 | CB11: 0.4 | CC11: 0.25 | CD11: 100000 | CE11: 50000 | CF11: 60000 | CG11: 100 | CH11: 0.01
A12: 2018 | B12: 2018/2019 | C12: 2018-05-04 | D12: 11850 | E12: 100000 | F12: 0.5 | G12: 5000 | H12: 0 | I12: 29500 | J12: 0.2 | K12: 115500 | L12: 0.4 | M12: 0.45 | N12: 0.075 | O12: 0.075 | P12: 0.325 | Q12: 0.381 | R12: 2000 | S12: 1000 | T12: 500 | U12: 0 | V12: 0 | W12: 0 | X12: 0 | Y12: 0.025 | Z12: 23400 | AA12: 0.1 | AB12: 0.2 | AC12: 0.1 | AD12: 11700 | AE12: 0.18 | AF12: 0.28 | AG12: 0.19 | AH12: 0.19 | AI12: 0 | AJ12: 300000 | AK12: 1500000 | AL12: 0.18 | AM12: 0.08 | AN12: 8424 | AO12: 46384 | AP12: 0.12 | AQ12: 0.02 | AR12: 8424 | AS12: 0.138 | AT12: 162 | AU12: 892 | AV12: 8424 | AW12: 46350 | AX12: 0.09 | AY12: 0.02 | AZ12: 2.95 | BA12: 6205 | BB12: 0.2 | BC12: 0.05 | BD12: 11850 | BE12: 100000 | BF12: 0.5 | BG12: 0 | BH12: 0 | BI12: 10150 | BJ12: 0.2 | BK12: 118420 | BL12: 0.41 | BM12: 0.46 | BP12: 0.075 | BQ12: 0.075 | BR12: 0.325 | BS12: 0.381 | BT12: 2000 | BU12: 1000 | BV12: 500 | BW12: 2000 | BX12: 0.19 | BY12: 19430 | BZ12: 0.21 | CA12: 325000 | CB12: 0.4 | CC12: 0.25 | CD12: 125000 | CE12: 50000 | CF12: 60000 | CG12: 100 | CH12: 0.01
A13: 2023 | B13: 2023/24 | C13: 2023-01-04 | D13: 12570 | E13: 100000 | F13: 0.5 | G13: 5000 | H13: 0 | I13: 32700 | J13: 0.2 | K13: 87440 | L13: 0.4 | M13: 0.45 | N13: 0 | O13: 0.0875 | P13: 0.3375 | Q13: 0.3935 | R13: 1000 | S13: 1000 | T13: 500 | U13: 0 | V13: 0 | W13: 0 | X13: 0 | Y13: 0.02 | Z13: 27800 | AA13: 0.1 | AB13: 0.2 | AC13: 0.1 | AD13: 6000 | AE13: 0.18 | AF13: 0.28 | AG13: 0.19 | AH13: 0.25 | AI13: 0.015 | AJ13: 50000 | AK13: 250000 | AL13: 0.18 | AM13: 0.06 | AN13: 9880 | AO13: 50270 | AP13: 0.1325 | AQ13: 0.0325 | AR13: 9100 | AS13: 0.1505 | AT13: 190 | AU13: 967 | AV13: 11908 | AW13: 50270 | AX13: 0.1025 | AY13: 0.0325 | AZ13: 3.45 | BA13: 6725 | BB13: 0.2 | BC13: 0.05 | BD13: 12570 | BE13: 100000 | BF13: 0.5 | BG13: 0 | BH13: 0 | BI13: 10956 | BJ13: 0.2 | BK13: 81478 | BL13: 0.42 | BM13: 0.47 | BP13: 0.075 | BQ13: 0.0875 | BR13: 0.3375 | BS13: 0.3935 | BT13: 1000 | BU13: 1000 | BV13: 500 | BW13: 2162 | BX13: 0.19 | BY13: 17974 | BZ13: 0.21 | CA13: 325000 | CB13: 0.4 | CC13: 0.25 | CD13: 175000 | CE13: 50000 | CF13: 60000 | CG13: 100 | CH13: 0.01
A14: 2024 | B14: 2024/25 | C14: 2023-01-04 | D14: 12570 | E14: 100000 | F14: 0.5 | G14: 5000 | H14: 0 | I14: 32700 | J14: 0.2 | K14: 87440 | L14: 0.4 | M14: 0.45 | N14: 0 | O14: 0.0875 | P14: 0.3375 | Q14: 0.3935 | R14: 500 | S14: 1000 | T14: 500 | U14: 0 | V14: 0 | W14: 0 | X14: 0 | Y14: 0.02 | Z14: 27800 | AA14: 0.1 | AB14: 0.2 | AC14: 0.1 | AD14: 3000 | AE14: 0.18 | AF14: 0.28 | AG14: 0.19 | AH14: 0.25 | AI14: 0.015 | AJ14: 50000 | AK14: 250000 | AL14: 0.18 | AM14: 0.06 | AN14: 9880 | AO14: 50270 | AP14: 0.1325 | AQ14: 0.0325 | AR14: 9100 | AS14: 0.1505 | AT14: 190 | AU14: 967 | AV14: 11908 | AW14: 50270 | AX14: 0.1025 | AY14: 0.0325 | AZ14: 3.45 | BA14: 6725 | BB14: 0.2 | BC14: 0.05 | BD14: 12570 | BE14: 100000 | BF14: 0.5 | BG14: 0 | BH14: 0 | BI14: 11685 | BJ14: 0.2 | BK14: 31338 | BL14: 0.42 | BM14: 0.45 | BN14: =125140-75000 -> 50140 | BO14: 0.48 | BP14: 0.075 | BQ14: 0.0875 | BR14: 0.3375 | BS14: 0.3935 | BT14: 500 | BU14: 1000 | BV14: 500 | BW14: 2306 | BX14: 0.19 | BY14: 17101 | BZ14: 0.21 | CA14: 325000 | CB14: 0.4 | CC14: 0.25 | CD14: 175000 | CE14: 50000 | CF14: 60000 | CG14: 100 | CH14: 0.01
AI21: 2022 NIC set to end of year rates
C22: if table changes in name need to amend code in tax_efficient macro

Sheet input
A1: Home | B1: report | G1: tax_efficient
A2: bhnpi | B2: Input
B4: What tax rules apply to the business owner? | E4: Rest of UK | S4: Scottish
S5: Rest of UK
B6: Details for the tax year of incorporation
B7: Brought forward profits at the start of the accounting period: | E7: 0 | S7: locked and set to nil a decided not needed
B9: Taxable profit as an unincorporated business: | E9: 0
B11: Salary: | E11: 0
B13: Closing figure per the accounts: | E13: =+E7+E21-H21 -> 0
B15: Dividends: | E15: 0
B18: Projected profit and drawings | E18: Profit you expect to make | H18: Target net personal income
B20: Year for formulas
B21: =CONCATENATE("Year ",C21) -> Year 1 | C21: 1 | D21: =whatyear(TODAY()) -> 2023 | E21: 0 | H21: 0
B23: =CONCATENATE("Year ",C23) -> Year 2 | C23: 2 | D23: =+whatyear(TODAY())+C23-1 -> 2024 | E23: 0 | H23: 0
B25: =CONCATENATE("Year ",C25) -> Year 3 | C25: 3 | D25: =+whatyear(TODAY())+C25-1 -> 2025 | E25: 0 | H25: 0
B27: =CONCATENATE("Year ",C27) -> Year 4 | C27: 4 | D27: =+whatyear(TODAY())+C27-1 -> 2026 | H27: 0
B29: =CONCATENATE("Year ",C29) -> Year 5 | C29: 5 | D29: =+whatyear(TODAY())+C29-1 -> 2027 | E29: 0 | H29: 0
B32: Value and cost of business goodwill
B33: Current value of business's goodwill: | E33: 0
B35: Price paid for the business's goodwill: | E35: 0

Sheet report
A1: input | B1: tax_efficient
A2: bhnp | B2: Results: Comparison of tax over 5 years
B4: Unincorporated business
D5: 0 | E5: =+D5 -> 0 | F5: =+E5 -> 0 | G5: 0 | H5: 0 | O5: Hide
C6: now year start | D6: 2024 | E6: 2023 | F6: 2023 | G6: 2023 | H6: 2023
D7: Year 1 | E7: Year 2 | F7: Year 3 | G7: Year 4 | H7: Year 5 | Q7: uses same as first year as no danger has 5 more years in it
D8: £ | E8: £ | F8: £ | G8: £ | H8: £
C9: Profit brought forward: | D9: =+input!E7 -> 0 | E9: =+D15 -> 0 | F9: =+E15 -> 0 | G9: =+F15 -> 0 | H9: =+G15 -> 0
C10: Profit: | D10: =+input!E21 -> 0 | E10: =+input!E23 -> 0 | F10: =+input!E25 -> 0 | G10: =+input!E27 -> 0 | H10: =+input!E29 -> 0
C11: Tax: | D11: =+-tax(qry_tax_rates22[],country,D10,0,0,y_year) -> 0 | E11: =+-tax(qry_tax_rates22[],country,E10,0,0,y_year) -> 0 | F11: =+-tax(qry_tax_rates22[],country,F10,0,0,y_year) -> 0 | G11: =+-tax(qry_tax_rates22[],country,G10,0,0,y_year) -> 0 | H11: =+-tax(qry_tax_rates22[],country,H10,0,0,y_year) -> 0
C12: NI - classes 2 and 4: | D12: =-class4(qry_tax_rates22[],D10,y_year)-(class2_new(qry_tax_rates22[],D10,y_year)) -> 0 | E12: =-class4(qry_tax_rates22[],E10,y_year)-(class2_new(qry_tax_rates22[],E10,y_year)) -> 0 | F12: =-class4(qry_tax_rates22[],F10,y_year)-(class2_new(qry_tax_rates22[],F10,y_year)) -> 0 | G12: =-class4(qry_tax_rates22[],G10,y_year)-(class2_new(qry_tax_rates22[],G10,y_year)) -> 0 | H12: =-class4(qry_tax_rates22[],H10,y_year)-(class2_new(qry_tax_rates22[],H10,y_year)) -> 0
C13: Retained: | D13: =+SUM(D9:D12) -> 0 | E13: =+SUM(E9:E12) -> 0 | F13: =+SUM(F9:F12) -> 0 | G13: =+SUM(G9:G12) -> 0 | H13: =+SUM(H9:H12) -> 0
C14: Drawings: | D14: =-input!H21 -> 0 | E14: =-input!H23 -> 0 | F14: =-input!H25 -> 0 | G14: =-input!H27 -> 0 | H14: =-+input!H29 -> 0
C15: Cumulative profit left in business | D15: =+D13+D14 -> 0 | E15: =E13+E14 -> 0 | F15: =F13+F14 -> 0 | G15: =G13+G14 -> 0 | H15: =H13+H14 -> 0
D17: 2024-03-31 | E17: =D17 -> 2024-03-31 | F17: =E17 -> 2024-03-31 | G17: 2024-03-31 | H17: 2024-03-31 | O17: Hide
B18: Company
D19: £ | E19: £ | F19: £ | G19: £ | H19: £
C20: Profit before salary: | D20: =+D10 -> 0 | E20: =+E10 -> 0 | F20: =+F10 -> 0 | G20: =+G10 -> 0 | H20: =+H10 -> 0
C21: Salary: | D21: =-MIN(+DC(qry_tax_rates22[],country&"PA",y_year),D20) -> 0 | E21: =-MIN(+DC(qry_tax_rates22[],country&"PA",y_year),E20) -> 0 | F21: =-MIN(+DC(qry_tax_rates22[],country&"PA",y_year),F20) -> 0 | G21: =-MIN(+DC(qry_tax_rates22[],country&"PA",y_year),G20) -> 0 | H21: =-MIN(+DC(qry_tax_rates22[],country&"PA",y_year),H20) -> 0
C22: Employers' NI: | D22: =-class1er(qry_tax_rates22[],-D21,D6) -> 0 | E22: =-class1er(qry_tax_rates22[],-E21,E6) -> 0 | F22: =-class1er(qry_tax_rates22[],-F21,F6) -> 0 | G22: =-class1er(qry_tax_rates22[],-G21,G6) -> 0 | H22: =-class1er(qry_tax_rates22[],-H21,H6) -> 0
C23: Profit: | D23: =+SUM(D20:D22) -> 0 | E23: =+SUM(E20:E22) -> 0 | F23: =+SUM(F20:F22) -> 0 | G23: =+SUM(G20:G22) -> 0 | H23: =+SUM(H20:H22) -> 0
C24: Tax | D24: =-ct(qry_tax_rates22[],D23,D17) -> 0 | E24: =-ct(qry_tax_rates22[],E23,E17) -> 0 | F24: =-ct(qry_tax_rates22[],F23,F17) -> 0 | G24: =-ct(qry_tax_rates22[],G23,G17) -> 0 | H24: =-ct(qry_tax_rates22[],H23,H17) -> 0
C25: Profit after tax: | D25: =+D23+D24 -> 0 | E25: =+E23+E24 -> 0 | F25: =+F23+F24 -> 0 | G25: =+G23+G24 -> 0 | H25: =+H23+H24 -> 0
C26: Profit brought forward: | D26: =+D9 -> 0 | E26: =+D28 -> -24875.53425 | F26: =+E28 -> -24875.53425 | G26: =+F28 -> -24875.53425 | H26: =+G28 -> -24875.53425
C27: Dividends: | D27: -24875.53425 | E27: 0 | F27: 0 | G27: 0 | H27: 0 | O27: Goal seek so that net = drawings
C28: Cumulative profit left in company (reserves) | D28: =+SUM(D25:D27) -> -24875.53425 | E28: =+SUM(E25:E27) -> -24875.53425 | F28: =+SUM(F25:F27) -> -24875.53425 | G28: =+SUM(G25:G27) -> -24875.53425 | H28: =+SUM(H25:H27) -> -24875.53425
B30: Your income from the company
D31: £ | E31: £ | F31: £ | G31: £ | H31: £
C32: Salary: | D32: =-D21 -> 0 | E32: =-E21 -> 0 | F32: =-F21 -> 0 | G32: =-G21 -> 0 | H32: =-H21 -> 0
C33: Dividend: | D33: =-+D27 -> 24875.53425 | E33: =-+E27 -> 0 | F33: =-+F27 -> 0 | G33: =-+G27 -> 0 | H33: =-+H27 -> 0
C34: Less tax: | D34: =-tax(qry_tax_rates22[],country,D32,0,D33,y_year) -> -1032.984247 | E34: =-tax(qry_tax_rates22[],country,E32,0,E33,y_year) -> 0 | F34: =-tax(qry_tax_rates22[],country,F32,0,F33,y_year) -> 0 | G34: =-tax(qry_tax_rates22[],country,G32,0,G33,y_year) -> 0 | H34: =-tax(qry_tax_rates22[],country,H32,0,H33,y_year) -> 0
C35: Less NI: | D35: =-class1ee(qry_tax_rates22[],D32,y_year) -> 0 | E35: =-class1ee(qry_tax_rates22[],E32,y_year) -> 0 | F35: =-class1ee(qry_tax_rates22[],F32,y_year) -> 0 | G35: =-class1ee(qry_tax_rates22[],G32,y_year) -> 0 | H35: =-class1ee(qry_tax_rates22[],H32,y_year) -> 0
C36: Your net income: | D36: =+SUM(D32:D35) -> 23842.55 | E36: =+SUM(E32:E35) -> 0 | F36: =+SUM(F32:F35) -> 0 | G36: =+SUM(G32:G35) -> 0 | H36: =+SUM(H32:H35) -> 0
B38: Comparison of tax positions
D39: £ | E39: £ | F39: £ | G39: £ | H39: £
C40: Total tax paid as sole trader: | D40: =-(D11+D12) -> 0 | E40: =-(E11+E12) -> 0 | F40: =-(F11+F12) -> 0 | G40: =-(G11+G12) -> 0 | H40: =-(H11+H12) -> 0
C41: Total tax on company and you as director: | D41: =-(+D22+D24+D34+D35) -> 1032.984247 | E41: =-(+E22+E24+E34+E35) -> 0 | F41: =-(+F22+F24+F34+F35) -> 0 | G41: =-(+G22+G24+G34+G35) -> 0 | H41: =-(+H22+H24+H34+H35) -> 0
C42: Tax saved by incorporating | D42: =+D40-D41 -> -1032.984247 | E42: =+E40-E41 -> 0 | F42: =+F40-F41 -> 0 | G42: =+G40-G41 -> 0 | H42: =+H40-H41 -> 0 | I42: =+SUM(D42:H42) -> -1032.984247
B44: Tax saving over 5 years | H44: =+SUM(D42:H42) -> -1032.984247

Sheet tax_efficient
A1: report
A2: bhp | B2: Results: Your and your company's capital position
B4: Sale of unincorporated business to your company | H4: £
D5: 1 | E5: =+D5 -> 1 | F5: =+E5 -> 1 | G5: 1 | H5: 1 | O5: Hide
C6: Sale price: | H6: =+input!E33 -> 0 | P6: careful - hidden row 5 has added years in it - but all at one to stop exceeding years in tax tables
C7: Amount you originally paid for business: | H7: =+input!E35 -> 0
C8: Capital gain: | H8: =+H6-H7 -> 0
C10: Annual exempt amount: | H10: =+MIN(DC(qry_tax_rates22[],"CGT_AEA",report!D6-1),H8) -> 0
C11: Net gain: | H11: =+H8-H10 -> 0
C12: Capital gains tax due
C13: =+IF(P20=0,CONCATENATE("All of gain at ",TEXT(DC(qry_tax_rates22[],"CGT_LR",y_year),"#%")),IF(P19=0,CONCATENATE("All of gain at ",TEXT(DC(qry_tax_rates22[],"CGT_HR",y_year),"#%")),CONCATENATE(TEXT(P19,"£#,###")," at ",TEXT(DC(qry_tax_rates22[],"CGT_LR",y_year),"#%")))) -> All of gain at 10% | H13: =+IF(P19=0,+P20*DC(qry_tax_rates22[],"CGT_HR",y_year),+P19*DC(qry_tax_rates22[],"CGT_LR",y_year)) -> 0 | O13: Based on income from last accounts
C14: =IF(AND(P19>0,P20>0),CONCATENATE("Balance of gain at ",TEXT(DC(qry_tax_rates22[],"CGT_HR",y_year),"#%")),"") ->  | H14: =+IF(P19=0,"",IF(P20>0,P20*DC(qry_tax_rates22[],"CGT_HR",y_year),"")) ->  | O14: Total income | P14: =+input!E9 -> 0
C15: Total CGT payable: | H15: =+SUM(H13:H14) -> 0 | O15: PA | P15: =+PA_amt(qry_tax_rates22[],country,0,P14,report!D6-1) -> 12570
O16: SRB+BRB | P16: =+DC(qry_tax_rates22[],"SRB",y_year)+DC(qry_tax_rates22[],"BRB",y_year) -> 37700
B17: Summary of cash position following sale | O17: space | P17: =MAX(0,P16+P15-P14) -> 50270
H18: £
C19: Proceeds credited to your director's loan account: | H19: =+H6 -> 0 | O19: at LR | P19: =+MIN(P17,H11) -> 0
C20: CGT payable: | H20: =+H15 -> 0 | O20: at HR | P20: =+H11-P19 -> 0
C21: Balance remaining in your loan account: | H21: =+H19-H20 -> 0
D24: =+DATE((whatyear(TODAY()))+D5,3,31) -> 2024-03-31 | E24: =+DATE((whatyear(TODAY()))+E5,3,31) -> 2024-03-31 | F24: =+DATE((whatyear(TODAY()))+F5,3,31) -> 2024-03-31 | G24: =+DATE((whatyear(TODAY()))+G5,3,31) -> 2024-03-31 | H24: =+DATE((whatyear(TODAY()))+H5,3,31) -> 2024-03-31 | O24: Hide
B25: Company's reserves
D26: Year 1 | E26: Year 2 | F26: Year 3 | G26: Year 4 | H26: Year 5
C27: now hidden year starting for formula purpose | D27: =+report!D6 -> 2024 | E27: =+report!E6 -> 2023 | F27: =+report!F6 -> 2023 | G27: =+report!G6 -> 2023 | H27: =+report!H6 -> 2023
D28: £ | E28: £ | F28: £ | G28: £ | H28: £
C29: Profit: | D29: =+report!D20 -> 0 | E29: =+report!E20 -> 0 | F29: =+report!F20 -> 0 | G29: =+report!G20 -> 0 | H29: =+report!H20 -> 0
C30: Less salary paid to you: | D30: =MIN(+report!D21,D29) -> 0 | E30: =MIN(+report!E21,E29) -> 0 | F30: =MIN(+report!F21,F29) -> 0 | G30: =MIN(+report!G21,G29) -> 0 | H30: =MIN(+report!H21,H29) -> 0
C31: Less employers' NI payable on salary: | D31: =+ROUND(-class1er(qry_tax_rates22[],D30,D27-1),0) -> 0 | E31: =+ROUND(-class1er(qry_tax_rates22[],E30,E27-1),0) -> 0 | F31: =+ROUND(-class1er(qry_tax_rates22[],F30,F27-1),0) -> 0 | G31: =+ROUND(-class1er(qry_tax_rates22[],G30,G27-1),0) -> 0 | H31: =+ROUND(-class1er(qry_tax_rates22[],H30,H27-1),0) -> 0
D32: =+SUM(D29:D31) -> 0 | E32: =+SUM(E29:E31) -> 0 | F32: =+SUM(F29:F31) -> 0 | G32: =+SUM(G29:G31) -> 0 | H32: =+SUM(H29:H31) -> 0
C33: Less corporation tax: | D33: =+ROUND(-ct(qry_tax_rates22[],D32,D24),0) -> 0 | E33: =+ROUND(-ct(qry_tax_rates22[],E32,E24),0) -> 0 | F33: =+ROUND(-ct(qry_tax_rates22[],F32,F24),0) -> 0 | G33: =+ROUND(-ct(qry_tax_rates22[],G32,G24),0) -> 0 | H33: =+ROUND(-ct(qry_tax_rates22[],H32,H24),0) -> 0 | I33: =+ROUND(-ct(qry_tax_rates22[],country,I32,I24),0) -> 
C34: After-tax profit: | D34: =+SUM(D32:D33) -> 0 | E34: =+SUM(E32:E33) -> 0 | F34: =+SUM(F32:F33) -> 0 | G34: =+SUM(G32:G33) -> 0 | H34: =+SUM(H32:H33) -> 0
C35: Profit brought forward: | D35: =+report!D9 -> 0 | E35: =+D37 -> -22218 | F35: =+E37 -> -22218 | G35: =+F37 -> -22218 | H35: =+G37 -> -22218
C36: Dividends paid to you: | D36: -22218 | E36: 0 | F36: 0 | G36: 0 | H36: 0 | O36: Set at drawings above +tax and NIC above less salary
C37: Cumulative value (reserves) left in company | D37: =+SUM(D34:D36) -> -22218 | E37: =+SUM(E34:E36) -> -22218 | F37: =+SUM(F34:F36) -> -22218 | G37: =+SUM(G34:G36) -> -22218 | H37: =+SUM(H34:H36) -> -22218
B39: Credits to and deductions from your loan account
D40: £ | E40: £ | F40: £ | G40: £ | H40: £
C41: Loan account starting balance: | D41: =+H21 -> 0 | E41: =+D50 -> 6417 | F41: =+E50 -> 6417 | G41: =+F50 -> 6417 | H41: =+G50 -> 6417
C42: Add to loan account:
C43: Gross salary | D43: =-D30 -> 0 | E43: =-E30 -> 0 | F43: =-F30 -> 0 | G43: =-G30 -> 0 | H43: =-H30 -> 0
C44: Dividend | D44: =-+D36 -> 22218 | E44: =-+E36 -> 0 | F44: =-+F36 -> 0 | G44: =-+G36 -> 0 | H44: =-+H36 -> 0
D45: =+D44+D43+D41 -> 22218 | E45: =+E44+E43+E41 -> 6417 | F45: =+F44+F43+F41 -> 6417 | G45: =+G44+G43+G41 -> 6417 | H45: =+H44+H43+H41 -> 6417
C46: Deducted from your loan account:
C47: Tax | D47: =+tax(qry_tax_rates22[],country,D43,0,D44,y_year) -> 800.45 | E47: =+tax(qry_tax_rates22[],country,E43,0,E44,y_year) -> 0 | F47: =+tax(qry_tax_rates22[],country,F43,0,F44,y_year) -> 0 | G47: =+tax(qry_tax_rates22[],country,G43,0,G44,y_year) -> 0 | H47: =+tax(qry_tax_rates22[],country,H43,0,H44,y_year) -> 0
C48: NI | D48: =+class1ee(qry_tax_rates22[],D43,y_year) -> 0 | E48: =+class1ee(qry_tax_rates22[],E43,y_year) -> 0 | F48: =+class1ee(qry_tax_rates22[],F43,y_year) -> 0 | G48: =+class1ee(qry_tax_rates22[],G43,y_year) -> 0 | H48: =+class1ee(qry_tax_rates22[],H43,y_year) -> 0
C49: Your drawings from business: | D49: 15000 | E49: 0 | F49: 0 | G49: 0 | H49: 0
C50: Your loan account closing balance | D50: =ROUNDDOWN(+D45-D47-D48-D49,0) -> 6417 | E50: =ROUNDDOWN(+E45-E47-E48-E49,0) -> 6417 | F50: =ROUNDDOWN(+F45-F47-F48-F49,0) -> 6417 | G50: =ROUNDDOWN(+G45-G47-G48-G49,0) -> 6417 | H50: =ROUNDDOWN(+H45-H47-H48-H49,0) -> 6417
D51: 0 | E51: 0 | F51: 0 | G51: 0 | H51: 0
B52: Summary
C53: Drawings need fully met | D53: =+IF(D49=-report!D14,"Yes","No") -> No | E53: =+IF(E49=-report!E14,"Yes","No") -> Yes | F53: =+IF(F49=-report!F14,"Yes","No") -> Yes | G53: =+IF(G49=-report!G14,"Yes","No") -> Yes | H53: =+IF(H49=-report!H14,"Yes","No") -> Yes
C55: Total tax as percentage of funds available | F55: =+(SUM(D47:H48)+SUM(D33:H33)+H15)/(H50+SUM(D47:H49)) -> 0.03602798701 | O55: First year tax burden in CGT - also has the tax and NIC in denominator as drawings
C56: Sole trade - tax as percentage of funds available | F56: =+(SUM(report!D11:H12)/SUM(report!D10:H10)) ->  | I56: =+SUM(D56:H56) -> 
D57: =+IF(D51=1,"Underfunded","") ->  | E57: =+IF(E51=1,"Underfunded","") ->  | F57: =+IF(F51=1,"Underfunded","") ->  | G57: =+IF(G51=1,"Underfunded","") ->  | H57: =+IF(H51=1,"Underfunded","") -> 
C61: drawings requested | D61: =+input!H21 -> 0 | E61: =+input!H23 -> 0 | F61: =+input!H25 -> 0 | G61: =+input!H27 -> 0 | H61: =+input!H29 -> 0
C62: Target drawings | D62: =+input!H21 -> 0 | E62: =+input!H23 -> 0 | F62: =+input!H25 -> 0 | G62: =+input!H27 -> 0 | H62: =+input!H29 -> 0
D65: =+DC(qry_tax_rates22[],country,"BRB",2015) -> 

Sheet xxxcharts (hidden)
A1: tax_efficient
B2: Summary
Q5: Absolutes | U5: Percentages
Q6: Sole trade | R6: Incorp | S6: With sale | U6: Sole trade | V6: Incorp | W6: With sale
P7: Total profits (+gain) & b/f | Q7: =+SUM(report!D10:H10)+report!D9 -> 0 | R7: =+Q7 -> 0 | S7: =+R7+tax_efficient!H6 -> 0 | U7: As sole trade | V7: As a company | W7: When you sell your business to the company
P8: Drawn & kept | Q8: =+-SUM(report!D14:H14) -> 0 | R8: =+SUM(report!D36:H36) -> 23842.55 | S8: =+SUM(tax_efficient!$D$49:$H$49) -> 15000 | T8: Money drawn from business | U8: =+Q8/Q$7 ->  | V8: =+R8/R$7 ->  | W8: =+S8/S$7 -> 
P9: Left to draw | Q9: =+SUM(report!H15) -> 0 | S9: =+SUM(tax_efficient!$H$50) -> 6417 | T9: Available to be drawn tax free | U9: =Q9/Q$7 ->  | W9: =+S9/S$7 -> 
P10: Left in company | R10: =+SUM(report!H28) -> -24875.53425 | S10: =+SUM(tax_efficient!$H$37) -> -22218 | T10: Available to draw as taxable income | V10: =R10/R$7 ->  | W10: =+S10/S$7 -> 
P11: Total tax & NIC | Q11: =-SUM(report!D11:H12) -> 0 | R11: =-SUM(report!D24:H24)-SUM(report!D22:H22)-SUM(report!D34:H35) -> 1032.984247 | S11: =+SUM(tax_efficient!$H$15)+-SUM(tax_efficient!$D$31:$H$31)+SUM(tax_efficient!$D$47:$H$48)+-SUM(tax_efficient!$D$33:$H$33)+N("careful as figures +ve and -ve") -> 800.45 | T11: Total Tax & NI payable | U11: =+Q11/Q$7 ->  | V11: =+R11/R$7 ->  | W11: =+S11/S$7 -> 
P12: Total | Q12: =+SUM(Q8:Q11) -> 0 | R12: =+SUM(R8:R11) -> 0 | S12: =+SUM(S8:S11) -> -0.55
P13: change to stack | R13: =+R12-R7 -> 0 | S13: =+S12-S7 -> -0.55
P14: lines between | S14: Allows CGT on sale
S15: Has proceeds of sale included as undrawn | V15: work this out - looks awful
S16: As it should do

Sheet info_input
A1: input | B1: report | C1: tax_efficient
A2: bhp | B2: Information - input
B4: Details for the tax year of incorporation
B6: Tax year of incorporation | C6: The rates from this year will be used for all future year calculations
B8: Taxable profit as an unincorporated business | C8: Enter the profit of the unincoprorated business for the final year before it is incorporated.
B10: Salary/dividends | C10: Enter any salary or dividends you received in the tax year of incorporation.
C12: These figures are used to calculate the likely capital gains tax payable on the incorporation of the business.
B14: Projected profit and drawings
B16: Profit you expect to make | C16: Enter an estimate of the profit you expect your business to make over the next five years.
B18: Drawings you intend to take | C18: Enter an estimate of the amounts you expect to draw, excluding payments for tax and NI, over the next five years.
B20: Value and cost of business
B22: Current value of business's goodwill | C22: Enter an estimate of how much your business's goodwill is worth.
B24: Price paid for the business's goodwill (if any) | C24: The amount paid to a third party for the goodwill of your business.
